[Event "LTU-chT 2019"]
[Site "Lithuania"]
[Date "2019.01.27"]
[Round "2"]
[White "Stremavicius, Pijus"]
[Black "Viskelis, Darius"]
[Result "1/2-1/2"]
[ECO "E10"]
[WhiteElo "2082"]
[BlackElo "2242"]
[Annotator "NA"]
[PlyCount "146"]
[EventDate "2019.01.26"]
[EventType "team-tourn"]
[EventCountry "LTU"]
[SourceTitle "playchess.com"]
[Source "ChessBase"]
[SourceQuality "1"]
[TimeControl "40/5400+30:1800+30"]

{[%evp 8,131,16,21,21,0,10,13,4,-1,56,56,59,38,57,52,39,14,26,0,11,32767,32767,-6,8,32767,32767,32767,0,0,0,0,0,-13,0,32767,-19,-19,-14,-68,0,-49,-41,-83,32767,32767,32767,-80,-33,32767,-31,32767,-27,-35,32767,32767,32767,32767,0,-12,-14,-52,32767,0,32767,0,0,32767,0,32767,77,72,110,106,32767,81,32767,113,112,113,283,256,233,111,105,112,104,102,112,109,107,78,180,32767,32767,32767,32767,32767,538,32767,32767,32767,462,32767,32767,0,766,212,194,32767,139,32767,32767,32767,32767,103,124,108,122,102,32767,105,32767,32767,74,8]} 1. d4 Nf6 2. c4 e6 3. Nf3 d5 4. g3 a6 5. Bg2 dxc4 6. Ne5 Bb4+ {LiveBook: 101 Games E04: Open Catalan: 5 Nf3} (6... c5 7. Be3 Nd5 8. Nc3 Nxe3 9. fxe3 Nd7 10. Nxc4 Be7 11. dxc5 Bxc5 12. Nd6+ Bxd6 13. Qxd6 Qe7 14. Qd4 Nf6 15. O-O O-O {½-½ (64) Onischuk,A (2681)-Bruzon Batista,L (2673) Saint Louis 2018}) 7. Nc3 Nd5 8. Bd2 O-O (8... Nb6 $11) 9. Nxc4 Nc6 10. O-O $146 ({Predecessor:} 10. a3 Be7 11. e4 Nxc3 12. Bxc3 b5 13. Ne3 Bb7 14. d5 exd5 15. exd5 {1-0 (26) Cosma,E (2370)-Baciu,D (2127) Eforie Nord 2010}) 10... Nxd4 11. Nxd5 Bxd2 12. Qxd2 exd5 13. Qxd4 dxc4 14. Qxc4 Qe7 15. Qe4 Qf6 16. Qb4 a5 17. Qa3 c6 18. Rac1 Re8 19. e3 h5 20. h4 Bg4 21. Qb3 Qe7 22. a3 Red8 23. Qb6 a4 ({Black should play} 23... Rd2 $15) 24. f3 Be6 25. Qc5 Qc7 26. f4 Ra5 27. Qc3 (27. Qb4 $11 {keeps the balance.}) 27... Bg4 (27... Rb5 $17 28. Rcd1 Bg4) 28. Qb4 Rd3 29. Rc3 Rxc3 30. bxc3 Ra8 31. Rb1 b5 32. Qc5 Re8 33. Kf2 Qd7 34. Qd4 Qe7 35. Bxc6 Qxa3 36. Qb4 Qxb4 37. Rxb4 Rc8 38. Bxb5 Rxc3 (38... a3 $11) 39. Bxa4 Ra3 40. Bb3 Ra7 41. e4 Rc7 42. f5 Kf8 43. Ke3 Rc3+ $2 (43... f6 $16 44. Rb8+ Ke7) 44. Kd4 Rc7 45. Bc4 $2 (45. Rb8+ $18 Ke7 46. Rg8) 45... Ke7 46. Ke5 Ra7 47. Bd5 Rc7 48. Kf4 f6 49. e5 Ra7 (49... Rc5 $16 50. Rb7+ Kd8) 50. e6 Kd6 51. Be4 Bh3 52. Rb6+ Ke7 $1 53. Rb8 (53. Rb7+ Rxb7 54. Bxb7) 53... Bg4 54. Bc6 (54. Rb7+ $18 Rxb7 55. Bxb7) 54... Kd6 $2 (54... Be2 55. Re8+ Kd6) 55. Be4 Ke7 56. Rb6 $2 Bh3 57. Ke3 $2 Ra3+ 58. Kd4 Ra4+ 59. Kd3 Ra3+ 60. Kc2 Ra7 61. Kb3 (61. Rb5 $18) 61... g6 62. fxg6 Bxe6+ 63. Kb4 f5 64. Bf3 Ra1 65. Kc5 Rg1 {[#]} 66. Bxh5 $11 ({White should try} 66. Kd4 $1 $16 {[%cal Rd4e5]} Kf6 67. Bb7 (67. Bxh5 Rxg3 68. Bd1 Rxg6 $11) 67... Rxg3 68. Bd5 Rg4+ 69. Kc5) 66... Rxg3 67. Be2 Rxg6 68. Bc4 f4 69. Kd4 f3 70. Rxe6+ Rxe6 71. Bxe6 Kxe6 72. Ke3 Kf5 73. Kxf3 Kg6 1/2-1/2

[Event "LTU-chT 2019"]
[Site "Lithuania"]
[Date "2019.01.27"]
[Round "2"]
[White "Babrauskas, Darius"]
[Black "Boyajyan, David"]
[Result "1/2-1/2"]
[ECO "C13"]
[WhiteElo "2019"]
[BlackElo "1890"]
[Annotator "NA"]
[PlyCount "112"]
[EventDate "2019.01.26"]
[EventType "team-tourn"]
[EventCountry "LTU"]
[SourceTitle "playchess.com"]
[Source "ChessBase"]
[SourceQuality "1"]
[TimeControl "40/5400+30:1800+30"]

1. e4 {[%emt 0:00:00]} e6 {[%emt 0:00:00]} 2. d4 {[%emt 0:00:00]} d5 {[%emt 0:00:00]} 3. Nc3 {[%emt 0:00:29]} Nf6 {[%emt 0:00:00]} 4. Bg5 {[%emt 0:01:11]} Be7 {[%emt 0:00:00]} 5. e5 {[%emt 0:00:32]} Nfd7 {[%emt 0:00:04]} 6. h4 {[%emt 0:00:58]} Nc6 {[%emt 0:00:08] C14: French: Classical System: 4 Bg5 Be7 main line} (6... h6 7. Bxe7 Qxe7 8. Qg4 O-O 9. f4 a6 10. Nf3 c5 11. O-O-O Nc6 12. Rh3 cxd4 13. Nxd4 Nxd4 14. Rxd4 f6 15. exf6 Qxf6 16. Qd1 {½-½ (61) Amonatov,F (2614)-Levin,E (2516) St Petersburg 2018}) 7. Nh3 {[%emt 0:07:59]} h6 {[%emt 0:00:25]} 8. Bxe7 {[%emt 0:00:19] LiveBook: 3 Games} ({Better is} 8. Be3 $14) 8... Qxe7 {[%emt 0:00:01]} 9. Qg4 {[%emt 0:04:44]} g6 {[%emt 0:05:13]} (9... O-O $11) 10. O-O-O {[%emt 0:01:35]} Nb6 {[%emt 0:00:55]} 11. Bb5 $146 {[%emt 0:03:11]} ({Predecessor:} 11. h5 $16 g5 12. f4 gxf4 13. Qg7 Qf8 14. Qf6 {0-1 (29) Novoselski,Z (2418)-Jeremic,V (2509) Vrnjacka Banja 2010}) 11... Bd7 {[%emt 0:01:46]} 12. h5 {[%emt 0:00:47]} gxh5 {[%emt 0:06:01]} 13. Qxh5 {[%emt 0:01:38]} O-O-O {[%emt 0:00:37]} 14. g3 {[%emt 0:06:44]} a6 {[%emt 0:03:06]} 15. Be2 {[%emt 0:04:14]} Na5 {[%emt 0:01:19]} 16. Qf3 {[%emt 0:05:56]} (16. Nf4 $14) 16... Nac4 {[%emt 0:16:30]} 17. Nf4 {[%emt 0:07:41]} c5 {[%emt 0:09:45]} 18. dxc5 {[%emt 0:10:49]} Qxc5 {[%emt 0:02:40]} 19. Nd3 {[%emt 0:01:19]} (19. Bxc4 $1 $14 Nxc4 20. Nd3) 19... Qc7 {[%emt 0:02:33]} 20. Qf4 {[%emt 0:00:52]} Kb8 {[%emt 0:03:46]} 21. Kb1 {[%emt 0:07:10]} d4 {[%emt 0:04:32]} (21... Nxb2 $17 22. Nxb2 (22. Kxb2 $2 Rc8 $19) 22... Qxc3) 22. Ne4 {[%emt 0:01:27]} Nd5 {[%emt 0:01:39]} 23. Qxf7 {[%emt 0:04:32]} Nxe5 {[%emt 0:02:56]} 24. Qg7 {[%emt 0:04:29]} Nxd3 {[%emt 0:06:26]} 25. Bxd3 {[%emt 0:00:25]} e5 {[%emt 0:06:21]} 26. Rxh6 {[%emt 0:01:59]} Rxh6 {[%emt 0:00:58]} 27. Qxh6 {[%emt 0:00:04]} Bg4 {[%emt 0:00:39]} (27... Nb4 $14) 28. Re1 {[%emt 0:01:35]} Qa5 {[%emt 0:01:15]} (28... Nb4 $16) 29. Qd2 {[%emt 0:00:41]} Qb6 {[%emt 0:01:00]} 30. Ka1 {[%emt 0:01:20]} (30. Qg5 $18 {has better winning chances.}) 30... Rc8 {[%emt 0:02:11] [#]} 31. Qg5 $2 {[%emt 0:02:00]} ({Only move:} 31. a3 $1 $18) 31... Qe6 {[%emt 0:02:50]} 32. a3 {[%emt 0:05:15]} Rg8 {[%emt 0:01:43]} 33. Qd2 {[%emt 0:01:06]} Qc6 {[%emt 0:01:27]} 34. Qa5 {[%emt 0:03:53]} Rf8 {[%emt 0:02:53]} 35. Qc5 {[%emt 0:02:11]} Qxc5 {[%emt 0:00:25]} 36. Nxc5 {[%emt 0:00:04] Discovered Attack (Double check)} Rxf2 {[%emt 0:00:20]} 37. Rxe5 {[%emt 0:01:08]} Ne3 {[%emt 0:00:36]} 38. Kb1 {[%emt 0:05:21]} Rg2 {[%emt 0:02:29]} 39. Re8+ {[%emt 0:00:42]} Kc7 {[%emt 0:01:16]} 40. b4 {[%emt 0:01:06]} Nd5 {[%emt 0:01:40]} 41. Rg8 {[%emt 0:31:25]} (41. Kb2 $16) 41... Nc3+ {[%emt 0:30:29]} 42. Kb2 {[%emt 0:01:13]} Rg1 {[%emt 0:01:31]} 43. Rg7+ {[%emt 0:00:00]} Kd8 {[%emt 0:00:00]} 44. Nxb7+ {[%emt 0:00:00]} Kc8 {[%emt 0:00:00]} 45. Nd6+ {[%emt 0:00:00]} Kb8 {[%emt 0:00:00]} 46. a4 {[%emt 0:00:00]} Rb1+ $1 {[%emt 0:00:00]} 47. Ka3 {[%emt 0:00:00]} Ra1+ {[%emt 0:00:00]} 48. Kb2 {[%emt 0:00:00]} Rb1+ {[%emt 0:00:00]} 49. Ka3 {[%emt 0:00:00]} Ra1+ {[%emt 0:00:00]} 50. Kb2 {[%emt 0:00:00]} Rb1+ {[%emt 0:00:00]} 51. Ka3 $11 {[%emt 0:00:00]} Ra1+ {[%emt 0:00:00]} 52. Kb3 {[%emt 0:00:00]} Be6+ {[%emt 0:00:00]} 53. Bc4 {[%emt 0:00:00]} Rb1+ {[%emt 0:00:00]} 54. Ka3 {[%emt 0:00:00]} Ra1+ {[%emt 0:00:00]} 55. Kb2 {[%emt 0:00:00]} Rb1+ {[%emt 0:00:00]} 56. Ka3 {[%emt 0:00:00]} Ra1+ {[%emt 0:00:00]} 1/2-1/2

[Event "LTU-chT 2019"]
[Site "Lithuania"]
[Date "2019.01.27"]
[Round "2"]
[White "Vaskevicius, Augustas"]
[Black "Vaznonis, Vytautas"]
[Result "0-1"]
[ECO "D12"]
[WhiteElo "1935"]
[BlackElo "2388"]
[Annotator "NA"]
[PlyCount "94"]
[EventDate "2019.01.26"]
[EventType "team-tourn"]
[EventCountry "LTU"]
[SourceTitle "playchess.com"]
[Source "ChessBase"]
[SourceQuality "1"]
[TimeControl "40/5400+30:1800+30"]

{[%evp 8,93,25,18,14,19,18,23,8,-8,0,3,32767,8,21,-22,-7,32767,32767,-33,-41,-38,32767,-49,-63,-69,-57,32767,-27,32767,-38,-24,-24,32767,32767,32767,-110,-114,-105,32767,32767,-122,-120,32767,32767,-116,-132,32767,32767,32767,32767,32767,32767,32767,-200,-278,32767,-210,-192,-237,-296,32767,-274,-298,-223,-269,-425,32767,32767,-486,32767,-395,0,32767,-513,-577,-500,32767,-957,-1081,-531,-470,32767,32767,32767,-476,-547,-554]} 1. Nf3 {[%emt 0:00:00]} d5 {[%emt 0:00:00]} 2. d4 {[%emt 0:00:17]} Nf6 {[%emt 0:00:00]} 3. c4 {[%emt 0:00:38]} c6 {[%emt 0:00:00]} 4. e3 {[%emt 0:00:35]} Bf5 {[%emt 0:00:48]} 5. Bd3 {[%emt 0:04:33]} Bxd3 {[%emt 0:00:41]} 6. Qxd3 {[%emt 0:00:09]} e6 {[%emt 0:01:12] LiveBook: 408 Games D12: Slav Defence: 3 Nf3 Nf6 4 e3 Bf5} 7. Nbd2 {[%emt 0:02:12]} (7. O-O Nbd7 8. Nbd2 a5 9. e4 dxc4 10. Qxc4 Be7 11. b3 O-O 12. Bb2 a4 13. Rab1 axb3 14. axb3 Ra2 15. Qc2 c5 {½-½ (62) Grachev,B (2645)-Artemiev,V (2696) Sochi 2017}) 7... c5 {[%emt 0:10:02]} 8. cxd5 $146 {[%emt 0:11:08]} ({Predecessor:} 8. dxc5 Bxc5 9. a3 O-O 10. b4 Be7 11. Bb2 Nbd7 12. O-O a5 13. Bc3 axb4 14. axb4 {0-1 (26) Hoeglauer,P (2114)-Schuster,K (2285) Bad Wiessee 2015}) 8... Qxd5 {[%emt 0:03:51]} 9. O-O {[%emt 0:11:54]} cxd4 {[%emt 0:14:58]} 10. e4 {[%emt 0:12:26]} Qd7 {[%emt 0:04:49]} 11. Qxd4 {[%emt 0:03:17]} Nc6 {[%emt 0:00:57]} 12. Qxd7+ {[%emt 0:00:30]} Nxd7 {[%emt 0:00:06]} 13. Nc4 {[%emt 0:04:52]} Nc5 {[%emt 0:14:04]} 14. e5 {[%emt 0:03:34]} O-O-O {[%emt 0:03:41]} 15. Bg5 {[%emt 0:04:39]} Rd5 {[%emt 0:04:00]} 16. Rfd1 {[%emt 0:09:21]} Nd3 {[%emt 0:00:45]} 17. a4 {[%emt 0:03:44]} h6 {[%emt 0:03:30]} 18. Be3 {[%emt 0:01:46]} Kb8 {[%emt 0:05:31]} 19. Kf1 {[%emt 0:03:40]} Be7 {[%emt 0:01:57]} 20. Ke2 {[%emt 0:02:45]} Rhd8 {[%emt 0:00:13]} 21. Ne1 {[%emt 0:01:20]} Ncxe5 {[%emt 0:08:01]} 22. Nxe5 {[%emt 0:01:46]} Nxe5 {[%emt 0:00:11]} 23. Rxd5 {[%emt 0:02:47]} Rxd5 {[%emt 0:00:23]} 24. Rd1 {[%emt 0:00:17]} Rxd1 {[%emt 0:02:21]} 25. Kxd1 {[%emt 0:00:01]} g5 {[%emt 0:03:08]} 26. h3 {[%emt 0:01:03]} a6 {[%emt 0:03:46]} 27. b3 {[%emt 0:00:26]} Kc7 {[%emt 0:01:30]} 28. f4 {[%emt 0:00:40]} Ng6 {[%emt 0:00:56]} 29. Nd3 {[%emt 0:01:01]} Kc6 {[%emt 0:01:30]} 30. g4 {[%emt 0:05:15]} Kd5 {[%emt 0:00:47]} 31. Ke2 {[%emt 0:01:02]} f6 {[%emt 0:01:15]} 32. fxg5 {[%emt 0:02:25]} hxg5 {[%emt 0:00:21]} 33. Nb2 {[%emt 0:00:45]} Bc5 {[%emt 0:02:03]} 34. Bd2 {[%emt 0:00:35]} Ke4 {[%emt 0:00:38]} 35. Nd3 {[%emt 0:00:44]} Bd4 {[%emt 0:00:22]} 36. b4 {[%emt 0:00:01]} b5 {[%emt 0:01:35]} 37. axb5 {[%emt 0:03:11]} axb5 $2 {[%emt 0:00:05]} 38. Bc1 {[%emt 0:00:56]} Ne7 {[%emt 0:03:17]} 39. Bd2 {[%emt 0:01:47]} Ng6 {[%emt 0:02:48]} (39... e5 $19 40. Be1 Ng6 41. Nf2+ Kd5) 40. Bc1 {[%emt 0:00:50]} Ne5 {[%emt 0:02:55]} 41. Ne1 {[%emt 0:31:00]} Bc3 {[%emt 0:30:39]} 42. Nc2 $1 {[%emt 0:00:09]} Nc4 {[%emt 0:00:00]} 43. Ba3 {[%emt 0:00:00]} Be5 {[%emt 0:00:00]} 44. Bc1 {[%emt 0:00:00]} Bc3 {[%emt 0:00:00]} 45. Ba3 {[%emt 0:00:00]} Ne5 {[%emt 0:00:00]} 46. Bc1 {[%emt 0:00:00]} Nc6 {[%emt 0:00:00]} 47. Be3 $19 {[%emt 0:00:00]} Bxb4 0-1

[Event "LTU-chT 2019"]
[Site "Lithuania"]
[Date "2019.03.30"]
[Round "3.4"]
[White "Vedrickas, Tautvydas"]
[Black "Vaznonis, Vytautas"]
[Result "1-0"]
[ECO "D15"]
[WhiteElo "2390"]
[BlackElo "2388"]
[Annotator "NA"]
[PlyCount "51"]
[EventDate "2019.01.26"]
[EventType "team-tourn"]
[EventCountry "LTU"]
[SourceTitle "playchess.com"]
[Source "ChessBase"]
[SourceQuality "1"]
[TimeControl "40/5400+30:1800+30"]

1. d4 {[%emt 0:00:00]} d5 {[%emt 0:00:00]} 2. c4 {[%emt 0:00:00]} c6 {[%emt 0:00:00]} 3. Nc3 {[%emt 0:00:54]} Nf6 {[%emt 0:00:01]} 4. Nf3 {[%emt 0:00:07]} a6 {[%emt 0:00:34]} 5. Qc2 {[%emt 0:00:36]} dxc4 {[%emt 0:02:20] D15: Slav Defence: 4 Nc3 a6 and gambit lines after 4 Nc3 dxc4} 6. e4 {[%emt 0:00:52]} b5 {[%emt 0:02:32]} 7. b3 {[%emt 0:00:08]} cxb3 {[%emt 0:16:32]} 8. axb3 {[%emt 0:00:35]} e6 {[%emt 0:02:15]} 9. Bd3 {[%emt 0:00:32]} Be7 $146 {[%emt 0:19:17]} ({Predecessor:} 9... Bb7 10. e5 Nd5 11. Nxd5 cxd5 12. Bxh7 Nc6 13. Be3 {0-1 (20) Pelletier,Y (2541)-Anand,V (2786) Zuerich 2017}) 10. O-O {[%emt 0:03:05]} a5 {[%emt 0:13:00]} 11. Qe2 {[%emt 0:30:06]} b4 {[%emt 0:04:22]} 12. Na4 {[%emt 0:02:46]} Ba6 {[%emt 0:00:10]} 13. Bxa6 {[%emt 0:05:13]} Rxa6 {[%emt 0:06:56]} 14. Bf4 {[%emt 0:01:41]} Nfd7 {[%emt 0:10:01]} 15. Rfd1 {[%emt 0:05:01]} O-O {[%emt 0:02:05]} 16. Rac1 {[%emt 0:00:57]} Re8 {[%emt 0:05:25]} 17. h3 {[%emt 0:01:12]} Ra7 {[%emt 0:01:09]} 18. Be3 {[%emt 0:11:06]} Rb7 {[%emt 0:03:29]} 19. Nd2 {[%emt 0:05:25]} Bd6 {[%emt 0:05:07]} 20. f4 {[%emt 0:07:26]} Bc7 {[%emt 0:00:27]} 21. Nc4 {[%emt 0:02:36]} Qe7 {[%emt 0:01:39]} 22. Qf3 {[%emt 0:01:06]} f5 $16 {[%emt 0:01:10]} 23. exf5 {[%emt 0:01:56]} exf5 {[%emt 0:00:01]} 24. d5 {[%emt 0:00:12]} Nf6 {[%emt 0:02:55]} 25. d6 {[%emt 0:01:10]} Bxd6 {[%emt 0:00:29]} 26. Nxd6 {[%emt 0:00:32]} 1-0

[Event "LTU-chT 2019"]
[Site "Lithuania"]
[Date "2019.03.30"]
[Round "3.5"]
[White "Germanavicius, Sarunas"]
[Black "Brazdzionis, Andrius"]
[Result "1/2-1/2"]
[ECO "D95"]
[WhiteElo "2352"]
[BlackElo "2311"]
[Annotator "NA"]
[PlyCount "28"]
[EventDate "2019.01.26"]
[EventType "team-tourn"]
[EventCountry "LTU"]
[SourceTitle "playchess.com"]
[Source "ChessBase"]
[SourceQuality "1"]
[TimeControl "40/5400+30:1800+30"]

{[%evp 16,28,12,0,13,0,32767,14,0,0,22,18,21,32767,20]} 1. Nf3 {[%emt 0:00:00]} g6 {[%emt 0:00:00]} 2. d4 {[%emt 0:01:20]} Bg7 {[%emt 0:00:30]} 3. c4 {[%emt 0:00:30]} Nf6 {[%emt 0:02:35]} 4. Nc3 {[%emt 0:00:42]} d5 {[%emt 0:00:30]} 5. e3 {[%emt 0:01:16]} O-O {[%emt 0:00:30]} 6. Qb3 {[%emt 0:01:42]} c6 {[%emt 0:07:10]} 7. Be2 {[%emt 0:04:05]} b6 {[%emt 0:05:23]} 8. Bd2 {[%emt 0:10:42]} Ba6 {[%emt 0:07:22]} 9. Rc1 {[%emt 0:16:08]} e6 {[%emt 0:02:18]} 10. cxd5 {[%emt 0:13:54]} Bxe2 {[%emt 0:02:33]} 11. Nxe2 {[%emt 0:00:33]} Qxd5 {[%emt 0:04:00]} 12. Qxd5 {[%emt 0:08:59]} cxd5 {[%emt 0:00:30]} 13. Bb4 {[%emt 0:01:36]} Re8 {[%emt 0:00:47]} 14. Nc3 {[%emt 0:01:58]} Nc6 $11 {[%emt 0:02:48]} 1/2-1/2

[Event "LTU-chT 2019"]
[Site "Lithuania"]
[Date "2019.03.30"]
[Round "3.6"]
[White "Stauskas, Lukas"]
[Black "Zilinskas, Vaidotas"]
[Result "1-0"]
[ECO "D45"]
[WhiteElo "2357"]
[BlackElo "2016"]
[Annotator "NA"]
[PlyCount "52"]
[EventDate "2019.01.26"]
[EventType "team-tourn"]
[EventCountry "LTU"]
[SourceTitle "playchess.com"]
[Source "ChessBase"]
[SourceQuality "1"]
[TimeControl "40/5400+30:1800+30"]

{[%evp 9,48,10,32767,32767,32767,32767,32767,32767,32767,11,27,18,35,35,53,11,7,12,24,9,1,0,46,-36,16,0,29,17,105,127,250,226,231,229,411,435,557,373,357,388,346]} 1. d4 {[%emt 0:00:00]} c6 {[%emt 0:00:00]} 2. c4 {[%emt 0:00:00]} d5 {[%emt 0:00:23]} 3. Nf3 {[%emt 0:00:00]} Nf6 {[%emt 0:00:12]} 4. Nc3 {[%emt 0:00:13]} e6 {[%emt 0:00:41]} 5. e3 {[%emt 0:00:40]} Bb4 {[%emt 0:02:10]} 6. Qc2 {[%emt 0:02:10]} O-O {[%emt 0:00:35] D45: Semi-Slav: 5 e3} 7. Bd3 {[%emt 0:01:00]} dxc4 {[%emt 0:10:30]} (7... Re8 8. a3 Bf8 9. e4 e5 10. dxe5 Ng4 11. cxd5 Nd7 12. h3 Ngxe5 13. Nxe5 Nxe5 14. Be3 {1-0 (50) Jandourek,L (2254)-Bargel,M (2178) Czech Republic 2018}) 8. Bxc4 {[%emt 0:00:02]} c5 {[%emt 0:01:46]} 9. O-O {[%emt 0:05:03]} cxd4 {[%emt 0:01:58]} 10. exd4 {[%emt 0:00:38]} Nbd7 {[%emt 0:02:02]} 11. Bg5 {[%emt 0:06:00]} Qa5 $146 {[%emt 0:04:54]} ({Predecessor:} 11... Bxc3 12. bxc3 Qc7 13. Bd3 b6 14. Rac1 Bb7 15. Qe2 Rac8 16. c4 Qd6 17. Rfd1 Rfe8 18. Bh4 h6 19. Ne5 Qf8 20. Bc2 Nxe5 21. dxe5 Nh7 22. Rd7 Bc6 23. Rxa7 {½-½ (38) Niebling,F (2059)-Meinke,D (1906) Buesum 2017}) 12. Rfe1 {[%emt 0:05:28]} b5 {[%emt 0:02:19]} 13. Bd3 {[%emt 0:12:19]} Bb7 {[%emt 0:00:38]} 14. Ne5 {[%emt 0:00:42]} h6 {[%emt 0:00:57]} 15. Bd2 {[%emt 0:09:34]} Rac8 {[%emt 0:03:55]} 16. Re3 {[%emt 0:09:21]} ({White should play} 16. a3 $14 Bxc3 17. bxc3 (17. Bxc3 Qd8 $11)) 16... Bd6 {[%emt 0:04:36]} ({Better is} 16... Rfd8 $15) 17. Qd1 {[%emt 0:02:54]} ({Not} 17. Nxb5 $2 {[#]} Qxb5 $1 {[%mdl 512]} 18. Bxb5 (18. Qxc8 $2 Qd5 $19) 18... Rxc2 $19) 17... b4 {[%emt 0:01:18]} 18. Nb5 {[%emt 0:01:57]} Bxe5 {[%emt 0:05:32]} (18... Bb8 $1 $11) 19. dxe5 {[%emt 0:00:12]} Nxe5 {[%emt 0:01:55]} (19... Ne4 $16 {was worth a try.}) 20. Rxe5 {[%emt 0:00:27]} Rfd8 {[%emt 0:00:19] [#]} 21. Qe2 $1 {[%emt 0:01:59]} Rxd3 $2 {[%emt 0:05:43]} (21... Qb6 22. Be3 (22. Bxb4 a6 $16) 22... Qc6) 22. Qxd3 {[%emt 0:00:19]} a6 {[%emt 0:00:08]} 23. Nd6 {[%emt 0:02:51]} Qxe5 {[%emt 0:02:20]} 24. Nxc8 {[%emt 0:00:07]} ({Not} 24. Nxb7 Nd5 $16) 24... Bxc8 $18 {[%emt 0:01:06]} 25. Qd8+ {[%emt 0:02:15]} Kh7 {[%emt 0:00:15]} 26. Qxc8 {[%emt 0:00:06]} Qxb2 {[%emt 0:00:13]} 1-0

[Event "LTU-chT 2019"]
[Site "Lithuania"]
[Date "2019.03.30"]
[Round "3.7"]
[White "Tamosaitis, Rimas"]
[Black "Narmontas, Tauras"]
[Result "1/2-1/2"]
[ECO "A45"]
[WhiteElo "2090"]
[BlackElo "2244"]
[Annotator "NA"]
[PlyCount "127"]
[EventDate "2019.01.26"]
[EventType "team-tourn"]
[EventCountry "LTU"]
[SourceTitle "playchess.com"]
[Source "ChessBase"]
[SourceQuality "1"]
[TimeControl "40/5400+30:1800+30"]

1. d4 {[%emt 0:00:00]} Nf6 {[%emt 0:02:49]} 2. Bg5 {[%emt 0:00:00]} d5 {[%emt 0:02:07]} 3. Bxf6 {[%emt 0:00:00]} exf6 {[%emt 0:00:03]} 4. e3 {[%emt 0:00:11]} Bd6 {[%emt 0:00:59]} 5. c4 {[%emt 0:00:17]} dxc4 {[%emt 0:00:59]} 6. Bxc4 {[%emt 0:00:08]} O-O {[%emt 0:00:19]} 7. Nc3 {[%emt 0:00:24]} a6 {[%emt 0:00:48] D00: 1 d4 d5: Unusual lines} (7... Nd7 8. Nge2 f5 9. O-O Nf6 10. Rc1 c6 11. a3 Qe7 12. Qc2 Be6 13. Bxe6 Qxe6 14. h3 Rfe8 15. Rfd1 Rad8 {½-½ (61) Adams,M (2744)-Hebden,M (2467) London 2016}) 8. Nge2 {[%emt 0:00:43]} b5 {[%emt 0:00:47]} 9. Bd5 {[%emt 0:00:16]} Ra7 $146 {[%emt 0:00:26]} ({Predecessor:} 9... c6 10. Bf3 Ra7 11. O-O f5 12. Qc2 Rc7 13. a3 Re8 14. b4 g6 15. Nc1 {½-½ (73) Enneper,E (2181)-Schracke,G (2234) Germany 2006}) 10. O-O {[%emt 0:00:36]} b4 {[%emt 0:00:23]} 11. Ne4 {[%emt 0:01:48]} Bxh2+ {[%emt 0:00:08]} 12. Kxh2 {[%emt 0:00:02]} Qxd5 {[%emt 0:00:06]} 13. Nc5 {[%emt 0:00:21]} Nd7 {[%emt 0:01:17]} 14. Nf4 {[%emt 0:00:40]} Qd6 {[%emt 0:00:17]} 15. Ne4 {[%emt 0:02:23]} Qe7 {[%emt 0:00:33]} 16. Ng3 {[%emt 0:00:08]} Nb6 {[%emt 0:01:09]} 17. Qh5 {[%emt 0:00:49]} Rd8 {[%emt 0:01:26]} 18. Rac1 {[%emt 0:00:30]} Be6 {[%emt 0:01:01]} 19. Nxe6 {[%emt 0:15:14]} Qxe6 {[%emt 0:10:14]} 20. Qa5 {[%emt 0:00:26]} b3 {[%emt 0:06:43]} 21. axb3 {[%emt 0:13:59]} Qxb3 {[%emt 0:02:27]} 22. Rc3 {[%emt 0:00:33]} Qxb2 {[%emt 0:01:40]} 23. Rc5 {[%emt 0:03:14]} h6 {[%emt 0:11:43]} 24. Kg1 {[%emt 0:00:56]} Qb3 {[%emt 0:01:05]} 25. Rfc1 {[%emt 0:02:28]} Rd7 {[%emt 0:00:24]} 26. Qa1 {[%emt 0:06:29]} Nd5 {[%emt 0:07:33]} 27. Rb1 Qd3 {[%emt 0:00:09]} 28. Rd1 {[%emt 0:02:51] [#]} Qg6 $1 {[%emt 0:00:44]} 29. e4 {[%emt 0:00:46]} (29. Qa4 $15 Qg4 30. Ra1) 29... Ne7 {[%emt 0:04:37]} 30. Qa4 {[%emt 0:03:47]} Qg4 {[%emt 0:02:56]} 31. Rb1 {[%emt 0:13:20]} Rd8 {[%emt 0:02:57]} 32. Ra5 {[%emt 0:01:50]} Qd7 {[%emt 0:00:41]} 33. Qxd7 {[%emt 0:01:48]} Rxd7 {[%emt 0:00:13]} 34. d5 {[%emt 0:00:21]} c6 {[%emt 0:00:49]} 35. Nf5 {[%emt 0:01:38]} Nxf5 {[%emt 0:01:29]} 36. dxc6 {[%emt 0:00:40]} Rdc7 {[%emt 0:00:13]} 37. exf5 {[%emt 0:01:39]} Rxc6 {[%emt 0:00:02]} 38. Rb8+ {[%emt 0:00:45]} Kh7 {[%emt 0:00:02]} 39. Rd5 {[%emt 0:00:47]} g6 {[%emt 0:02:13]} 40. g4 {[%emt 0:01:01] [#]} Rc4 $1 {[%emt 0:02:45]} 41. f3 {[%emt 0:31:13]} h5 {[%emt 0:33:20]} 42. gxh5 {[%emt 0:02:39]} gxh5 {[%emt 0:01:49]} 43. Kg2 {[%emt 0:07:59]} a5 {[%emt 0:16:22]} 44. Kh3 {[%emt 0:03:36]} a4 {[%emt 0:05:22]} 45. Rdd8 {[%emt 0:02:57]} Kh6 {[%emt 0:00:10]} 46. Rg8 {[%emt 0:00:17]} Rac7 $11 {[%emt 0:00:31]} 47. Ra8 {[%emt 0:07:13]} Rc3 {[%emt 0:00:00]} 48. Rg3 {[%emt 0:00:00]} Rc8 {[%emt 0:00:00]} 49. Rxa4 {[%emt 0:00:00]} R3c5 {[%emt 0:00:00]} 50. Rf4 {[%emt 0:00:00]} Rc1 {[%emt 0:00:00]} 51. Rb4 {[%emt 0:00:00]} R8c2 {[%emt 0:00:00]} 52. Rg2 {[%emt 0:00:00]} Rc3 {[%emt 0:00:35]} 53. Rg3 {[%emt 0:00:00]} Rh1+ {[%emt 0:02:51]} 54. Kg2 {[%emt 0:00:00]} Rcc1 {[%emt 0:00:36]} 55. Kf2 {[%emt 0:00:00]} Rh2+ {[%emt 0:02:05]} 56. Ke3 {[%emt 0:00:00]} Rc3+ {[%emt 0:02:26]} 57. Kd4 {[%emt 0:00:00]} h4 {[%emt 0:00:08]} 58. Rg4 {[%emt 0:00:00]} Rxf3 {[%emt 0:00:15]} 59. Rb8 {[%emt 0:00:00]} Kh5 {[%emt 0:01:15]} 60. Rg7 {[%emt 0:00:00]} Kh6 {[%emt 0:00:11]} 61. Rg4 {[%emt 0:00:00]} Kh5 {[%emt 0:00:01]} 62. Rg7 {[%emt 0:00:00]} Rf4+ 63. Ke3 Kh6 64. Rg1 1/2-1/2